fUSD/lending_fUSD_20260224
["ID","MTS","AMOUNT","RATE_DAILY","PERIOD"]
[406534948,1771921847927,-200.0,0.00016792,2]
[406534949,1771921847941,-150.597,0.00016869,2]
[406534950,1771921847954,-1277.0,0.00016869,2]
[406534951,1771921847969,-1218.319,0.00016869,2]
[406534952,1771921847982,-3138.35673853,0.00016873,2]
[406534953,1771921847997,-1120.70979822,0.00016908,2]
[406534954,1771921848015,-217.15233878,0.00016964,2]
[406534955,1771921848030,-924.60877284,0.00016964,2]
[406534956,1771921848049,-6623.03809716,0.0001698,2]
[406534957,1771921848061,-300.0,0.00017,2]
[406534958,1771921848073,-173.87087054,0.00017,7]
[406534959,1771921848086,-405976.30869257,0.00017,2]
[406534960,1771921848103,-507.72635797,0.00017,5]
[406534961,1771921848114,-482.622583,0.00017041,2]
[406534962,1771921848125,-159.62910539,0.00017081,2]
[406534963,1771921848136,-2129.0,0.00017084,2]
[406534964,1771921848152,-1613.931096,0.000171,2]
[406534965,1771921848165,-23821.35910021,0.00017118,2]
[406534966,1771921848176,-1194.0,0.00017134,2]
[406534967,1771921848187,-1194.0,0.00017143,2]
[406534968,1771921848200,-371.35234656,0.00017217,2]
[406534969,1771921848212,-1194.0,0.00017239,2]
[406534970,1771921848225,-350.0,0.00017288,2]
[406534971,1771921848237,-1613.0,0.00017332,2]
[406534972,1771921848251,-1194.0,0.00017352,2]
[406534973,1771921848264,-6453.0,0.00017403,2]
[406534974,1771921848276,-482.622583,0.00017404,2]
[406534975,1771921848291,-350.0,0.0001746,2]
[406534976,1771921848304,-225.18697532,0.00017512,2]
[406534977,1771921848319,-958.81929743,0.00017512,2]
[406534978,1771921848331,-1194.0,0.00017533,2]
[406534979,1771921848344,-350.0,0.0001754,2]
[406534980,1771921848357,-439.91,0.00017568,2]
[406534981,1771921848369,-1194.0,0.00017577,2]
[406534982,1771921848381,-2332.75047016,0.0001764,2]
[406534983,1771921848393,-1194.0,0.00017741,2]
[406534984,1771921848410,-427.76795387,0.00017753,2]
[406534985,1771921848423,-1194.0,0.00017753,2]
[406534986,1771921848436,-1194.0,0.00017759,2]
[406534987,1771921848450,-1194.0,0.00017765,2]
[406534988,1771921848463,-482.622583,0.00017766,2]
[406534989,1771921848475,-949.41679849,0.00017808,2]
[406534990,1771921848492,-949.41679849,0.00017808,2]
[406534991,1771921848505,-949.41679849,0.00017808,2]
[406534992,1771921848517,-949.41679849,0.00017808,2]
[406534993,1771921848530,-949.41679849,0.00017808,2]
[406534994,1771921848543,-949.41679849,0.00017808,2]
[406534995,1771921848555,-949.41679849,0.00017808,2]
[406534996,1771921848567,-949.41679849,0.00017808,2]
[406534997,1771921848580,-949.41679849,0.00017808,2]
[406534998,1771921848593,-949.41679849,0.00017808,2]
[406534999,1771921848605,-949.41679849,0.00017808,2]
[406535000,1771921848618,-949.41679849,0.00017808,2]
[406535001,1771921848630,-949.41679849,0.00017808,2]
[406535002,1771921848642,-949.41679849,0.00017808,2]
[406535003,1771921848654,-949.41679849,0.00017808,2]
[406535004,1771921848666,-949.41679849,0.00017808,2]
[406535005,1771921848678,-949.41679849,0.00017808,2]
[406535006,1771921848691,-1007.84244762,0.00017808,2]
[406535007,1771921848703,-1007.84244762,0.00017808,2]
[406535008,1771921848715,-1007.84244762,0.00017808,2]
[406535009,1771921848731,-1007.84244762,0.00017808,2]
[406535010,1771921848743,-1007.84244762,0.00017808,2]
[406535011,1771921848755,-1007.84244762,0.00017808,2]
[406535012,1771921848766,-1007.84244762,0.00017808,2]
[406535013,1771921848778,-1007.84244762,0.00017808,2]
[406535014,1771921848793,-1003.2613456,0.00017808,2]
[406535015,1771921848806,-1003.2613456,0.00017808,2]
[406535016,1771921848818,-1003.2613456,0.00017808,2]
[406535017,1771921848832,-1003.2613456,0.00017808,2]
[406535018,1771921848845,-800.0,0.00017808,2]
[406535019,1771921848856,-1194.0,0.00017829,2]
[406535020,1771921848868,-6979.23072247,0.0001783,2]
[406535021,1771921848880,-1194.0,0.00017865,2]
[406535022,1771921848891,-1028.44767539,0.000179,2]
[406535023,1771921848903,-23821.35910021,0.000179,2]
[406535024,1771921848914,-199.26988234,0.000179,2]
[406535025,1771921848926,-6375.13100948,0.000179,2]
[406535026,1771921848938,-230.59895307,0.000179,2]
[406535027,1771921848950,-3138.35673853,0.000179,2]
[406535028,1771921848962,-1197.48125148,0.000179,2]
[406535029,1771921848973,-329.75485486,0.000179,2]
[406535030,1771921848984,-1194.0,0.00017929,2]
[406535031,1771921848996,-557.0,0.00017938,2]
[406535032,1771921849007,-150.0,0.00017938,2]
[406535033,1771921849018,-150.0,0.00017938,2]
[406535034,1771921849030,-288.0,0.00017938,2]
[406535035,1771921849041,-350.0,0.00017967,2]
[406535036,1771921849052,-150.0,0.00017974,2]
[406535037,1771921849063,-172.69340614,0.00017976,2]
[406535038,1771921849074,-353.07922563,0.0001799,2]
[406535039,1771921849086,-500.0,0.00017997,2]
[406535040,1771921849097,-43220.2652633,0.00017998,2]
[406535041,1771921849109,-512.1,0.00017999,2]
[406535042,1771921849121,-512.1,0.00017999,2]
[406535043,1771921849132,-512.1,0.00017999,2]
[406535044,1771921849144,-512.1,0.00017999,2]
[406535045,1771921849159,-512.1,0.00017999,2]
[406535046,1771921849171,-512.1,0.00017999,2]
[406535047,1771921849182,-512.1,0.00017999,2]
[406535048,1771921849194,-512.1,0.00017999,2]
[406535049,1771921849205,-512.33,0.00017999,2]
[406535050,1771921849216,-500.0,0.00017999,2]
[406535051,1771921849228,-500.0,0.00017999,2]
[406535052,1771921849240,-500.0,0.00017999,2]
[406535053,1771921849252,-216.94847432,0.00017999,2]
[406535054,1771921849263,-500.0,0.00017999,2]
[406535055,1771921849275,-500.0,0.00017999,2]
[406535056,1771921849286,-500.0,0.00017999,2]
[406535057,1771921849299,-500.0,0.00017999,2]
[406535058,1771921849310,-456.85459131,0.00017999,2]
[406535059,1771921849322,-515.02706108,0.00017999,2]
[406535060,1771921849334,-500.0,0.00017999,2]
[406535061,1771921849346,-500.0,0.00017999,2]
[406535062,1771921849358,-500.0,0.00017999,2]
[406535063,1771921849369,-500.0,0.00017999,2]
[406535064,1771921849381,-500.0,0.00017999,2]
[406535065,1771921849393,-500.0,0.00017999,2]
[406535066,1771921849405,-500.0,0.00017999,2]
[406535067,1771921849418,-617.72986232,0.00017999,2]
[406535068,1771921849429,-500.0,0.00017999,2]
[406535069,1771921849441,-500.0,0.00017999,2]
[406535070,1771921849452,-620.42088911,0.00017999,2]
[406535071,1771921849464,-500.0,0.00017999,2]
[406535072,1771921849475,-500.0,0.00017999,2]
[406535073,1771921849487,-506.35812357,0.00017999,2]
[406535074,1771921849499,-300.0,0.00017999,2]
[406535075,1771921849511,-500.0,0.00017999,2]
[406535076,1771921849528,-500.0,0.00017999,2]
[406535077,1771921849541,-500.0,0.00017999,2]
[406535078,1771921849552,-300.64,0.00017999,2]
[406535079,1771921849562,-300.0,0.00017999,2]
[406535080,1771921849571,-666.0,0.00017999,2]
[406535081,1771921849836,-150.0,0.00017999,2]
[406535082,1771921849848,-210.94677836,0.00017999,2]
[406535083,1771921849858,-2472317.40364808,0.00018,2]
[406535084,1771921849867,-1172557.62053616,0.00018,2]
[406535085,1771921850138,-1917.95021935,0.00016673,2]
[406535086,1771921850182,-558.0,0.00016673,2]
[406535087,1771921850208,-1801.12700213,0.00016673,2]
[406535088,1771921850219,-330.0,0.00016673,2]
[406535089,1771921850738,-592.76112896,0.00016673,2]
[406535090,1771921910556,10000.0,0.00010708,2]
[406535091,1771921916528,0.01,0.00010708,2]
[406535092,1771921916552,557.8806,0.00010708,2]
[406535093,1771921941250,500.0,0.00010704,2]
[406535094,1771921967827,8942.1294,0.00010708,2]
[406535095,1771921967856,10000.01,0.00010708,2]
[406535096,1771921967883,10000.01,0.00010708,2]
[406535097,1771921967909,10000.01,0.00010708,2]
[406535098,1771921967936,10000.01,0.00010708,2]
[406535099,1771921969288,-9707.80309444,0.00010708,2]
[406535100,1771921969406,-10000.01,0.00010708,2]
[406535101,1771921971128,-10000.01,0.00010708,2]
[406535102,1771921974063,-10000.01,0.00010708,2]
[406535103,1771921974181,-10000.01,0.00010708,2]
[406535104,1771921974318,-10000.01,0.00010708,2]
[406535105,1771921974439,-10000.01,0.00010708,2]
[406535106,1771921974581,-10000.01,0.00010708,2]
[406535107,1771921974713,-10000.01,0.00010708,2]
[406535108,1771921974837,-10000.01,0.00010708,2]
[406535109,1771921988022,6206.25638,7.945e-05,2]
[406535110,1771922010317,5000.01,0.00010608,2]
[406535111,1771922047772,4046.919288,7.945e-05,2]
[406535112,1771922138957,-260.91121935,0.0001034,2]
[406535113,1771922139065,-161.98428225,0.0001034,2]
[406535114,1771922139150,-209.05,0.0001034,2]
[406535115,1771922139253,-500.0,0.0001034,2]
[406535116,1771922139348,-166.66,0.0001034,2]
[406535117,1771922139449,-166.66,0.0001034,2]
[406535118,1771922139559,-166.66,0.0001034,2]
[406535119,1771922139691,-470.31599031,0.0001034,2]
[406535120,1771922139793,-500.0,0.0001034,2]
[406535121,1771922139904,-229.68400969,0.0001034,2]
[406535122,1771922139998,-270.31599031,0.0001034,2]
[406535123,1771922140101,-1785.56524526,0.0001034,2]
[406535124,1771922140212,-174.15098099,0.0001034,2]
[406535125,1771922140304,-340.74940262,0.0001034,2]
[406535126,1771922228048,2929.04691,7.945e-05,2]
[406535127,1771922230390,-1086.59,0.00010181,2]
[406535128,1771922230447,-7826.83,0.00010181,2]
[406535129,1771922238072,-150.0,0.00010339,2]
[406535130,1771922238102,-300.0,0.00010339,2]
[406535131,1771922238133,-250.0,0.00010339,2]
[406535132,1771922238203,-8600.01,0.0001034,2]
[406535135,1771922309108,10000.01,0.0001033,2]
[406535136,1771922309129,10000.01,0.0001033,2]
[406535137,1771922309149,10000.01,0.0001033,2]
[406535138,1771922309170,10000.01,0.0001033,2]
[406535139,1771922354385,-1000.0,0.00010104,2]
[406535140,1771922354415,-1566.2189354,0.0001033,2]
[406535141,1771922429081,1656.12,0.0001,2]
[406535142,1771922476646,-1200.0,0.00010339,2]
[406535143,1771922476673,-150.0,0.00010339,2]
[406535144,1771922476701,-300.0,0.00010339,2]
[406535145,1771922476729,-152.0,0.00010339,2]
[406535146,1771922476755,-196.01,0.00010339,2]
[406535147,1771922476916,-1003.99,0.00010339,2]
[406535148,1771922476943,-235.0,0.00010339,2]
[406535152,1771922508099,-152.06764086,0.00010339,2]
[406535153,1771922521403,300.0,0.00010339,2]
[406535154,1771922523063,150.0,0.00010339,2]
[406535156,1771922563341,176.198522,0.0001026,2]
[406535157,1771922565769,-441.61692115,0.0001034,2]
[406535158,1771922565885,-5000.01,0.0001034,2]
[406535159,1771922565990,-5000.01,0.0001034,2]
[406535160,1771922566117,-5000.01,0.0001034,2]
[406535161,1771922614439,-300.0,0.00010339,2]
[406535162,1771922615252,1500.0,0.00010144,2]
[406535163,1771922629588,-3500.01,0.0001034,2]
[406535164,1771922629685,-5000.01,0.0001034,2]
[406535165,1771922629788,-5000.01,0.0001034,2]
[406535166,1771922629901,-5000.01,0.0001034,2]
[406535167,1771922630016,-5000.01,0.0001034,2]
[406535168,1771922630143,-5000.01,0.0001034,2]
[406535169,1771922632636,-5000.01,0.0001034,2]
[406535170,1771922698770,-5000.01,0.0001034,2]
[406535171,1771922698962,-5000.01,0.0001034,2]
[406535172,1771922699073,-592.06595807,0.0001034,2]
[406535195,1771922839547,-325.81685468,0.00010375,2]
[406535200,1771922855303,-166.66,0.00010387,2]
[406535201,1771922870008,-197.13,0.000106,2]
[406535202,1771922885292,-1200.0,0.00010607,2]
[406535203,1771922885318,-300.0,0.00010607,2]
[406535204,1771922885343,-150.0,0.00010607,2]
[406535205,1771922900565,-865.56847714,0.00010608,2]
[406535206,1771922900598,-3268.87304572,0.00010608,2]
[406535207,1771922900739,-5000.01,0.00010608,2]
[406535208,1771922900861,-1731.11695428,0.00010608,2]
[406535209,1771922900894,-1537.77609144,0.00010608,2]
[406535210,1771922901007,-149.38850856,0.00010608,2]
[406535211,1771922901033,-1333.8956,0.00010608,2]
[406535212,1771922901059,-562.08619091,0.00010608,2]
[406535213,1771922901084,-409.26940106,0.00010707,2]
[406535214,1771922901143,-90.73059894,0.00010707,2]
[406535215,1771922901174,-1000.0,0.00010708,2]
[406535216,1771922901207,-3000.01,0.00010708,2]
[406535217,1771922901241,-5000.01,0.00010708,2]
[406535218,1771922901344,-5000.01,0.00010708,2]
[406535219,1771922901460,-5000.01,0.00010708,2]
[406535220,1771922901578,-5000.01,0.00010708,2]
[406535221,1771922903562,-5000.01,0.00010708,2]
[406535222,1771922906578,-5000.01,0.00010708,2]
[406535223,1771922906681,-1222.8826,0.00010708,2]
[406535224,1771922926074,-920.81432704,0.00010708,2]
[406535225,1771922926099,-916.35022247,0.00010708,2]
[406535226,1771922926141,-1325.68090098,0.00010708,2]
[406535227,1771922926278,-5000.01,0.00010708,2]
[406535228,1771922926402,-1325.71090098,0.00010708,2]
[406535229,1771922926423,-2348.58819804,0.00010708,2]
[406535230,1771922926507,-5000.01,0.00010708,2]
[406535231,1771922926691,-919.04,0.00010708,2]
[406535232,1771922926718,-999.99,0.00010708,2]
[406535233,1771922926745,-499.99,0.00010708,2]
[406535234,1771922926808,-161.97,0.00010708,2]
[406535235,1771922926831,-5000.01,0.00010708,2]
[406535236,1771922926937,-162.0,0.00010708,2]
[406535237,1771922926961,-4676.01,0.00010708,2]
[406535238,1771922927054,-5000.01,0.00010708,2]
[406535239,1771922928858,-0.03,0.00010708,2]
[406535240,1771922928880,-4999.95,0.00010708,2]
[406535241,1771922937893,-5000.01,0.00010708,2]
[406535242,1771922938000,-5000.01,0.00010708,2]
[406535243,1771922938125,-5000.01,0.00010708,2]
[406535244,1771922938257,-5000.01,0.00010708,2]
[406535245,1771922938357,-5000.01,0.00010708,2]
[406535246,1771922938459,-5000.01,0.00010708,2]
[406535247,1771922938571,-5000.01,0.00010708,2]
[406535248,1771922948131,824.998639,7.945e-05,2]
[406535249,1771922980652,9175.011361,0.00010508,2]
[406535250,1771922980673,10000.01,0.00010508,2]
[406535251,1771922980693,10000.01,0.00010508,2]
[406535252,1771922980722,10000.01,0.00010508,2]
[406535253,1771922980746,10000.01,0.00010508,2]
[406535254,1771922980767,10000.01,0.00010508,2]
[406535255,1771922980788,10000.01,0.00010508,2]
[406535256,1771922980808,10000.01,0.00010508,2]
[406535257,1771922980828,10000.01,0.00010508,2]
[406535258,1771922980848,10000.01,0.00010508,2]
[406535259,1771922992095,-9823.811478,0.00010508,2]
[406535260,1771922992204,-10000.01,0.00010508,2]
[406535261,1771922995311,-10000.01,0.00010508,2]
[406535262,1771922995469,-10000.01,0.00010508,2]
[406535263,1771922995731,-10000.01,0.00010508,2]
[406535264,1771922995875,-10000.01,0.00010508,2]
[406535265,1771922996036,-10000.01,0.00010508,2]
[406535266,1771922996155,-10000.01,0.00010508,2]
[406535267,1771922996292,-10000.01,0.00010508,2]
[406535274,1771923031541,-1200.0,0.00010507,2]
[406535275,1771923031550,-163.17503185,0.00010507,2]
[406535276,1771923031561,-72.82496815,0.00010507,2]
[406535277,1771923031570,-318130.487361,0.00010508,2]
[406535278,1771923031579,-454.3546,0.00010608,2]
[406535279,1771923031588,-3117.01740213,0.00010699,2]
[406535280,1771923031597,-1001.79575194,0.00010707,2]
[406535281,1771923031606,-1002.87861069,0.00010707,2]
[406535282,1771923031615,-197107.7,0.00010708,2]
[406535283,1771923031624,-487.27,0.00010708,2]
[406535284,1771923031634,-5997.0022,0.00010712,2]
[406535285,1771923031644,-500.0,0.00010728,2]
[406535286,1771923031652,-500.0,0.00010729,2]
[406535287,1771923031661,-213.75439126,0.00010729,2]
[406535288,1771923031671,-605.8092783,0.00010729,2]
[406535289,1771923031679,-605.8092783,0.00010729,2]
[406535290,1771923031689,-463.87094126,0.00010729,2]
[406535291,1771923031699,-605.8092783,0.00010729,2]
[406535292,1771923031708,-605.8092783,0.00010729,2]
[406535293,1771923031717,-605.8092783,0.00010729,2]
[406535294,1771923031727,-605.8092783,0.00010729,2]
[406535295,1771923031737,-605.8092783,0.00010729,2]
[406535296,1771923031746,-605.8092783,0.00010729,2]
[406535297,1771923031755,-605.8092783,0.00010729,2]
[406535299,1771923031763,-605.8092783,0.00010729,2]
[406535300,1771923031773,-605.8092783,0.00010729,2]
[406535301,1771923031782,-605.8092783,0.00010729,2]
[406535302,1771923031793,-605.8092783,0.00010729,2]
[406535303,1771923031803,-605.8092783,0.00010729,2]
[406535304,1771923031813,-605.8092783,0.00010729,2]
[406535306,1771923031822,-605.8092783,0.00010729,2]
[406535308,1771923031831,-605.8092783,0.00010729,2]
[406535310,1771923031841,-605.8092783,0.00010729,2]
[406535312,1771923031850,-605.8092783,0.00010729,2]
[406535314,1771923031859,-605.8092783,0.00010729,2]
[406535316,1771923031868,-605.8092783,0.00010729,2]
[406535318,1771923031877,-605.8092783,0.00010729,2]
[406535320,1771923031889,-605.8092783,0.00010729,2]
[406535322,1771923031899,-605.8092783,0.00010729,2]
[406535324,1771923031908,-605.8092783,0.00010729,2]
[406535327,1771923031918,-605.8092783,0.00010729,2]
[406535329,1771923031927,-605.8092783,0.00010729,2]
[406535331,1771923031937,-605.8092783,0.00010729,2]
[406535333,1771923031946,-605.8092783,0.00010729,2]
[406535335,1771923031955,-605.8092783,0.00010729,2]
[406535337,1771923031964,-605.8092783,0.00010729,2]
[406535339,1771923031973,-605.8092783,0.00010729,2]
[406535341,1771923031982,-605.8092783,0.00010729,2]
[406535343,1771923031992,-605.8092783,0.00010729,2]
[406535345,1771923032001,-605.8092783,0.00010729,2]
[406535347,1771923032010,-605.8092783,0.00010729,2]
[406535348,1771923032019,-605.8092783,0.00010729,2]
[406535350,1771923032028,-605.8092783,0.00010729,2]
[406535353,1771923032037,-605.8092783,0.00010729,2]
[406535355,1771923032046,-605.8092783,0.00010729,2]
[406535357,1771923032055,-605.8092783,0.00010729,2]
[406535358,1771923032064,-605.8092783,0.00010729,2]
[406535361,1771923032074,-605.8092783,0.00010729,2]
[406535362,1771923032083,-605.8092783,0.00010729,2]
[406535365,1771923032092,-605.8092783,0.00010729,2]
[406535366,1771923032102,-605.8092783,0.00010729,2]
[406535369,1771923032111,-605.8092783,0.00010729,2]
[406535370,1771923032120,-605.8092783,0.00010729,2]
[406535372,1771923032129,-605.8092783,0.00010729,2]
[406535374,1771923032138,-605.8092783,0.00010729,2]
[406535376,1771923032147,-605.8092783,0.00010729,2]
[406535378,1771923032157,-605.8092783,0.00010729,2]
[406535380,1771923032166,-605.8092783,0.00010729,2]
[406535382,1771923032175,-605.8092783,0.00010729,2]
[406535384,1771923032184,-606.57202846,0.00010729,2]
[406535387,1771923032194,-606.57202846,0.00010729,2]
[406535388,1771923032203,-606.57202846,0.00010729,2]
[406535390,1771923032213,-606.57202846,0.00010729,2]
[406535392,1771923032226,-606.57202846,0.00010729,2]
[406535394,1771923032235,-606.57202846,0.00010729,2]
[406535396,1771923032244,-606.57202846,0.00010729,2]
[406535398,1771923032253,-606.57202846,0.00010729,2]
[406535401,1771923032263,-606.57202846,0.00010729,2]
[406535402,1771923032272,-606.57202846,0.00010729,2]
[406535404,1771923032281,-606.57202846,0.00010729,2]
[406535406,1771923032291,-606.57202846,0.00010729,2]
[406535408,1771923032302,-606.57202846,0.00010729,2]
[406535409,1771923032311,-606.57202846,0.00010729,2]
[406535410,1771923032319,-606.57202846,0.00010729,2]
[406535411,1771923032329,-606.57202846,0.00010729,2]
[406535412,1771923032339,-606.57202846,0.00010729,2]
[406535413,1771923032348,-606.57202846,0.00010729,2]
[406535414,1771923032357,-606.57202846,0.00010729,2]
[406535415,1771923032366,-606.57202846,0.00010729,2]
[406535416,1771923032375,-606.57202846,0.00010729,2]
[406535417,1771923032385,-606.57202846,0.00010729,2]
[406535419,1771923032395,-606.57202846,0.00010729,2]
[406535421,1771923032404,-606.57202846,0.00010729,2]
[406535423,1771923032412,-606.57202846,0.00010729,2]
[406535425,1771923032422,-606.57202846,0.00010729,2]
[406535427,1771923032431,-606.57202846,0.00010729,2]
[406535429,1771923032441,-606.57202846,0.00010729,2]
[406535431,1771923032450,-606.57202846,0.00010729,2]
[406535433,1771923032459,-606.57202846,0.00010729,2]
[406535435,1771923032468,-606.57202846,0.00010729,2]
[406535437,1771923032478,-606.57202846,0.00010729,2]
[406535439,1771923032487,-606.57202846,0.00010729,2]
[406535441,1771923032496,-500.0,0.00010729,2]
[406535443,1771923032505,-200.0,0.00010729,2]
[406535445,1771923032515,-500.49069894,0.00010729,2]
[406535446,1771923032524,-166.66,0.0001073,2]
[406535447,1771923032533,-1543.16,0.0001073,2]
[406535448,1771923032543,-29145.35,0.0001073,2]
[406535449,1771923032553,-9999.99,0.0001073,2]
[406535450,1771923032562,-2986.76,0.0001073,2]
[406535451,1771923032571,-1474.34,0.0001073,2]
[406535452,1771923032581,-150.99,0.0001073,2]
[406535453,1771923032590,-349.89,0.0001073,2]
[406535454,1771923032599,-9999.99,0.0001073,2]
[406535455,1771923032608,-311.71,0.0001073,2]
[406535456,1771923032617,-299.99,0.0001073,2]
[406535457,1771923032626,-7141.19,0.0001073,2]
[406535458,1771923032635,-150.99,0.0001073,2]
[406535459,1771923032644,-3709.03,0.0001073,2]
[406535460,1771923032653,-14047.33,0.0001073,2]
[406535461,1771923032663,-1625.86,0.000108,2]
[406535462,1771923032672,-572.5782841,0.000108,2]
[406535463,1771923032681,-500.0,0.000108,2]
[406535464,1771923032690,-500.0,0.000108,2]
[406535465,1771923032700,-500.0,0.000108,2]
[406535466,1771923032709,-500.0,0.000108,2]
[406535467,1771923032719,-848.80379452,0.000108,2]
[406535468,1771923032728,-500.0,0.000108,2]
[406535469,1771923032737,-500.0,0.000108,2]
[406535470,1771923032746,-500.0,0.000108,2]
[406535471,1771923032755,-676.41980953,0.000108,2]
[406535472,1771923032765,-500.0,0.000108,2]
[406535473,1771923032774,-518.33688463,0.000108,2]
[406535474,1771923032783,-632.45598044,0.000108,2]
[406535475,1771923032793,-500.0,0.000108,2]
[406535476,1771923032802,-500.0,0.000108,2]
[406535477,1771923032811,-524.23267642,0.000108,2]
[406535478,1771923032821,-500.0,0.000108,2]
[406535479,1771923032830,-500.0,0.000108,2]
[406535480,1771923032839,-500.0,0.000108,2]
[406535481,1771923032848,-500.0,0.000108,2]
[406535482,1771923032857,-500.0,0.000108,2]
[406535483,1771923032866,-500.0,0.000108,2]
[406535484,1771923032875,-500.0,0.000108,2]
[406535485,1771923032885,-500.0,0.000108,2]
[406535486,1771923032895,-500.0,0.000108,2]
[406535487,1771923032904,-500.0,0.000108,2]
[406535488,1771923032913,-500.0,0.000108,2]
[406535489,1771923032922,-500.0,0.000108,2]
[406535490,1771923032932,-797.98046326,0.000108,2]
[406535491,1771923032942,-500.0,0.000108,2]
[406535492,1771923032951,-500.0,0.000108,2]
[406535493,1771923032961,-500.0,0.000108,2]
[406535494,1771923032970,-500.0,0.000108,2]
[406535495,1771923032980,-500.0,0.000108,2]
[406535496,1771923032989,-500.0,0.000108,2]
[406535497,1771923032998,-500.0,0.000108,2]
[406535498,1771923033008,-500.0,0.000108,2]
[406535499,1771923033018,-500.0,0.000108,2]
[406535500,1771923033027,-972.15293801,0.000108,2]
[406535501,1771923033037,-500.0,0.000108,2]
[406535502,1771923033046,-500.0,0.000108,2]
[406535503,1771923033055,-500.0,0.000108,2]
[406535504,1771923033064,-500.0,0.000108,2]
[406535505,1771923033074,-500.0,0.000108,2]
[406535506,1771923033083,-500.0,0.000108,2]
[406535507,1771923033092,-500.0,0.000108,2]
[406535508,1771923033101,-500.0,0.000108,2]
[406535509,1771923033111,-500.0,0.000108,2]
[406535510,1771923033120,-500.0,0.000108,2]
[406535511,1771923033130,-500.0,0.000108,2]
[406535512,1771923033140,-500.0,0.000108,2]
[406535513,1771923033149,-500.0,0.000108,2]
[406535514,1771923033158,-500.0,0.000108,2]
[406535515,1771923033167,-719.22414134,0.000108,2]
[406535516,1771923033176,-500.0,0.000108,2]
[406535517,1771923033185,-500.0,0.000108,2]
[406535518,1771923033195,-900.28022052,0.000108,2]
[406535519,1771923033204,-500.0,0.000108,2]
[406535520,1771923033213,-500.0,0.000108,2]
[406535521,1771923033224,-500.0,0.000108,2]
[406535522,1771923033234,-500.0,0.000108,2]
[406535523,1771923033243,-506.74229929,0.000108,2]
[406535524,1771923033252,-972.15293801,0.000108,2]
[406535525,1771923033263,-773.33228946,0.000108,2]
[406535526,1771923033272,-785.68353372,0.000108,2]
[406535527,1771923033281,-500.0,0.000108,2]
[406535528,1771923033290,-500.0,0.000108,2]
[406535529,1771923033302,-500.0,0.000108,2]
[406535530,1771923033311,-500.0,0.000108,2]
[406535531,1771923033321,-500.0,0.000108,2]
[406535532,1771923033330,-500.0,0.000108,2]
[406535533,1771923033339,-705.08270808,0.000108,2]
[406535534,1771923033349,-500.0,0.000108,2]
[406535535,1771923033359,-709.41135874,0.000108,2]
[406535536,1771923033368,-500.0,0.000108,2]
[406535537,1771923033378,-500.0,0.000108,2]
[406535538,1771923033389,-4322.61732352,0.00010807,2]
[406535539,1771923033398,-6477.84941449,0.000109,2]
[406535540,1771923033407,-1000.0,0.00010998,2]
[406535541,1771923033416,-2500.0,0.00010998,2]
[406535542,1771923033426,-160.0,0.00011,2]
[406535543,1771923033436,-500.0,0.00011002,2]
[406535544,1771923033445,-166.66,0.00011072,2]
[406535545,1771923033455,-1625.86,0.00011074,2]
[406535546,1771923033464,-151.0,0.00011091,2]
[406535547,1771923033473,-151.0,0.00011091,2]
[406535548,1771923033483,-200.0,0.00011091,2]
[406535549,1771923033492,-151.0,0.00011091,2]
[406535550,1771923033501,-151.0,0.00011091,2]
[406535551,1771923033510,-151.0,0.00011091,2]
[406535552,1771923033520,-151.0,0.00011091,2]